[Event "Mitropa Cup Women 2022"]
[Site "Corte"]
[Date "2022.05.03"]
[Round "4.1"]
[White "Exler, Veronika"]
[Black "Zimina, Olga"]
[Result "0-1"]
[ECO "B10"]
[WhiteElo "2140"]
[BlackElo "2345"]
[Annotator "TA"]
[PlyCount "92"]
[EventDate "2022.04.30"]
[EventType "team-tourn"]
[EventCountry "FRA"]
[SourceTitle "playchess.com"]
[Source "ChessBase"]
[SourceQuality "1"]
[BlackTeam "Italy"]
[BlackTeamCountry "ITA"]
[TimeControl "40/5400+30:1800+30"]

{[%evp 13,92,16,10,0,0,8,17,14,33,16,16,23,16,20,14,17,27,0,3,3,10,0,2,0,10,-12,0,-14,-12,-19,-12,-19,-27,-29,-29,-29,-19,-29,-12,-35,-19,-39,-42,-28,-32,-75,-75,-75,-75,-143,-120,-114,-128,-183,-180,-215,-195,-284,-278,-485,-347,-332,-222,-214,-211,-283,-275,-266,-264,-321,-267,-293,-325,-537,-535,-520,-310,-647,-345,-1692,-1247]} 1. e4 {[%emt 0:00:02]} c6 {[%emt 0:00:06]} 2. Nf3 {[%emt 0:00:08]} d5 {[%emt 0:00:05]} 3. Nc3 {[%emt 0:00:02]} dxe4 {[%emt 0:00:07]} 4. Nxe4 {[%emt 0:00:04]} Nf6 {[%emt 0:00:04]} 5. Nxf6+ {[%emt 0:00:05]} exf6 {[%emt 0:00:05]} 6. Bc4 {[%emt 0:00:10]} Bd6 {[%emt 0:00:16]} 7. Qe2+ {[%emt 0:00:09]} Qe7 {[%emt 0:00:11]} 8. O-O {[%emt 0:00:18] B11: Caro-Kann: Two Knights Variation.} Qxe2 {[%emt 0:02:04]} 9. Bxe2 {[%emt 0:00:05]} Nd7 {[%emt 0:06:23]} 10. d4 {[%emt 0:00:35][%cal Bd2d4,Bd4d5][%mdl 32] [#] The position is equal.} Nf8 $146 {[%emt 0:00:34]} ({Predecessor:} 10... O-O 11. Bd2 Re8 12. Rfe1 Nf8 13. Bd3 Bg4 14. Rxe8 Rxe8 15. Re1 Rxe1+ 16. Nxe1 Ne6 {½-½ (16) Ghinda,M (2445)-Andersson,U (2545) Polanica Zdroj 1978}) 11. c4 {[%emt 0:03:51]} Ng6 {[%emt 0:00:55]} 12. Rd1 {[%emt 0:26:29]} Nf4 {[%emt 0:01:31]} 13. Bxf4 {[%emt 0:04:49]} Bxf4 {[%emt 0:02:23]} 14. d5 {[%emt 0:01:29]} c5 {[%emt 0:10:30]} 15. a3 {[%emt 0:10:06]} Bd6 {[%emt 0:02:13]} 16. Bd3 {[%emt 0:12:04]} O-O {[%emt 0:09:06][%cal Be8g8,Bg8g7,Bg7f6][%mdl 32]} 17. Nd2 {[%emt 0:02:07]} f5 {[%emt 0:00:26]} 18. Rab1 {[%emt 0:00:06]} Bd7 {[%emt 0:08:49]} 19. b3 {[%emt 0:05:05]} g6 {[%emt 0:02:44]} 20. Nf3 {[%emt 0:01:30]} Kg7 {[%emt 0:00:44]} 21. Re1 {[%emt 0:00:06]} Kf6 {[%emt 0:00:18]} 22. Re2 {[%emt 0:01:45]} Rfe8 {[%emt 0:00:08]} 23. Rbe1 {[%emt 0:06:13]} Rxe2 {[%emt 0:00:23]} (23... b6 {with more complications.} 24. g3 Rxe2 25. Rxe2 Re8) 24. Rxe2 {[%emt 0:00:07]} Rb8 {[%emt 0:17:36]} 25. a4 {[%emt 0:00:50]} a6 {[%emt 0:02:37]} 26. Ra2 {[%emt 0:01:07]} g5 {[%emt 0:00:37]} 27. Ne1 {[%emt 0:08:06]} Rg8 {[%emt 0:09:31]} 28. Re2 {[%emt 0:02:15]} h5 {[%emt 0:03:34][%cal Bh7h5,Bh5h4][%mdl 32]} 29. Nc2 {[%emt 0:04:04]} h4 {[%emt 0:00:40] White is now going downhill.} 30. f3 {[%emt 0:01:30]} Be5 {[%emt 0:06:12]} 31. Na3 {[%emt 0:02:00]} (31. Ne1 $142) 31... g4 $17 {[%emt 0:06:57] Black is more active.} 32. fxg4 {[%emt 0:00:21]} fxg4 {[%emt 0:00:28]} 33. Rf2+ {[%emt 0:01:46]} (33. Kh1 $17) 33... Ke7 $19 {[%emt 0:00:40]} (33... Kg7 34. Rf1 $17) 34. Re2 {[%emt 0:01:44]} Kd6 {[%emt 0:00:05]} 35. Nc2 {[%emt 0:00:06]} (35. Nb1 {keeps fighting.}) 35... f5 {[%emt 0:01:09][%cal Bf7f5,Bf5f4][%mdl 32]} 36. Rf2 $2 {[%emt 0:02:47] [#]} (36. Kh1) 36... f4 {[%emt 0:00:31]} 37. Be4 {[%emt 0:00:54]} h3 {[%emt 0:02:42]} 38. gxh3 {[%emt 0:00:22]} g3 {[%emt 0:00:22]} ({Weaker is} 38... gxh3+ 39. Kf1) 39. hxg3 {[%emt 0:01:46]} Rxg3+ {[%emt 0:00:28]} ({And not} 39... Bxh3 40. Rf3 $17) 40. Rg2 {[%emt 0:00:05]} Rxb3 {[%emt 0:05:03] ...Bf6 is the strong threat.} ({Worse is} 40... Bxh3 41. Rxg3 fxg3 42. Kh1 $17) 41. h4 {[%emt 0:32:46]} Bxa4 {[%emt 0:03:12] And now ...Rc3 would win.} 42. Rg6+ {[%emt 0:00:00]} Kc7 {[%emt 0:00:10] [#] Strongly threatening ...Rb1+.} 43. Rg5 $2 {[%emt 0:00:00]} (43. d6+ Bxd6 44. Kf1) 43... Bc3 {[%emt 0:06:31]} 44. Rg2 {[%emt 0:00:00]} Rb1+ {[%emt 0:00:35]} 45. Kh2 $2 {[%emt 0:00:00]} (45. Kf2) 45... Be5 {[%emt 0:00:43] Threatens to win with ...f3+. A strong pair of Bishops.} 46. Kh3 $2 {[%emt 0:00:00]} (46. Rg5 Bc3 47. Kh3) 46... Bd7+ {[%emt 0:00:08] Weighted Error Value: White=0.57/Black=0.26 (precise)} 0-1

[Event "Mitropa Cup Women 2022"]
[Site "Corte"]
[Date "2022.05.03"]
[Round "4.2"]
[White "Brunello, Marina"]
[Black "Hapala, Elisabeth"]
[Result "1-0"]
[ECO "B85"]
[WhiteElo "2337"]
[BlackElo "2124"]
[Annotator "TA"]
[PlyCount "167"]
[EventDate "2022.04.30"]
[EventType "team-tourn"]
[EventCountry "FRA"]
[SourceTitle "playchess.com"]
[Source "ChessBase"]
[SourceQuality "1"]
[TimeControl "40/5400+30:1800+30"]

{[%evp 27,167,5,12,0,15,15,25,0,21,0,22,0,0,0,85,75,82,79,108,21,17,0,15,26,20,6,16,11,58,65,175,142,137,71,78,58,83,80,87,64,64,64,66,29,70,70,80,37,50,49,49,30,29,23,61,24,85,68,91,91,91,91,91,79,79,76,114,41,90,68,92,90,95,64,96,37,61,61,95,38,82,82,83,72,208,204,230,229,218,212,274,270,370,362,466,436,526,490,357,269,303,207,367,316,318,307,270,247,188,107,107,107,1761,107,2154,2359,1968,1816,29970,29971,29973,29964,29961,29963,29955,29959,29958,29959,29967,0,29971,1060,29972,29971,29971,29971,29976,29976,29980,1738,4610,773]} 1. e4 {[%emt 0:00:03]} c5 {[%emt 0:00:05]} 2. Nf3 {[%emt 0:00:06]} e6 {[%emt 0:00:04]} 3. d4 {[%emt 0:00:03]} cxd4 {[%emt 0:00:04]} 4. Nxd4 {[%emt 0:00:04]} Nc6 {[%emt 0:00:05]} 5. Be2 {[%emt 0:01:32]} Qc7 {[%emt 0:02:42]} 6. Nc3 {[%emt 0:01:51]} a6 {[%emt 0:00:12]} 7. O-O {[%emt 0:02:36]} Nf6 {[%emt 0:00:10]} 8. Be3 {[%emt 0:00:17]} Be7 {[%emt 0:00:33]} 9. Kh1 {[%emt 0:00:31]} d6 {[%emt 0:00:57]} 10. f4 {[%emt 0:03:35]} O-O {[%emt 0:00:15]} 11. Qe1 {[%emt 0:00:37]} Nxd4 {[%emt 0:01:25]} 12. Bxd4 {[%emt 0:00:07]} b5 {[%emt 0:00:05]} 13. a3 {[%emt 0:00:20]} Bb7 {[%emt 0:00:12]} 14. Qg3 {[%emt 0:00:04]} Rad8 {[%emt 0:00:56]} 15. Bd3 {[%emt 0:06:55] B85: Sicilian Scheveningen: 6 Be2 a6, lines with early Be3.} Rd7 {[%emt 0:05:13]} 16. Rae1 {[%emt 0:00:54]} Re8 {[%emt 0:00:35]} 17. Nd1 {[%emt 0:09:17] White has an edge.} Qd8 {[%emt 0:09:33]} 18. Nf2 {[%emt 0:03:39]} g6 {[%emt 0:07:07]} 19. Qh3 {[%emt 0:05:02]} Bf8 $1 {[%emt 0:09:19] [#]} 20. f5 $146 {[%emt 0:10:24] Strongly threatening Bxf6.} ({Predecessor:} 20. Bxf6 Qxf6 21. Ng4 Qxb2 22. f5 Bg7 23. Qh4 Qc3 24. f6 Bf8 25. Re3 Qc5 26. Nh6+ {½-½ (55) Ponkratov,P (2478)-Vekshenkov,N (2420) Miass 2007}) 20... e5 {[%emt 0:07:25]} (20... Bg7 $11 {remains equal.}) 21. Be3 $16 {[%emt 0:00:10]} d5 {[%emt 0:01:37][%cal Rd5e4] Inhibits c4.} 22. Bg5 {[%emt 0:01:08]} Be7 {[%emt 0:05:50][%cal Of6g4]} 23. Bxf6 {[%emt 0:06:47]} (23. exd5 $1 $16 Nh5 24. Bxe7 Rdxe7 25. Qf3 (25. fxg6 hxg6 26. Ng4 Qxd5 $16)) 23... Bxf6 $11 {[%emt 0:00:02]} 24. Ng4 {[%emt 0:00:08] Hoping for fxg6.} Bg5 {[%emt 0:27:44]} (24... Bg7 $5 {[%cal Rd5e4]}) 25. exd5 $40 {[%emt 0:00:54][%mdl 128] White attacks.} Bxd5 {[%emt 0:06:40]} 26. Rxe5 {[%emt 0:06:38]} Rxe5 {[%emt 0:00:11]} 27. Nxe5 {[%emt 0:00:04][%cal Rf5g6]} Re7 {[%emt 0:03:12]} (27... Rc7 $11) 28. Qg3 $14 {[%emt 0:08:53]} f6 {[%emt 0:06:24]} (28... Rc7 $14) 29. Nf3 {[%emt 0:02:03]} Bxf3 {[%emt 0:01:22]} 30. Qxf3 {[%emt 0:03:38]} ({White should try} 30. gxf3 Qc7 31. fxg6) 30... Kg7 $16 {[%emt 0:02:07]} 31. Qg4 {[%emt 0:01:09] And now fxg6 would win.} (31. Qc6 {keeps more tension.} Qd4 32. Qxa6 Qxb2 33. Qd6) 31... Rd7 {[%emt 0:01:03]} 32. Qe4 {[%emt 0:01:31][%cal Rf5g6]} Qe7 {[%emt 0:02:02]} 33. Qxe7+ {[%emt 0:06:56]} Rxe7 {[%emt 0:00:01][%mdl 4096] Endgame KRB-KRB} 34. g3 {[%emt 0:00:09]} Be3 {[%emt 0:01:38]} 35. a4 {[%emt 0:03:13]} Rb7 {[%emt 0:00:36]} 36. Re1 {[%emt 0:03:30]} Bd4 {[%emt 0:00:23]} 37. Re6 {[%emt 0:00:15]} Bxb2 {[%emt 0:00:36]} 38. Rxa6 {[%emt 0:00:27]} bxa4 {[%emt 0:00:10]} 39. Rxa4 {[%emt 0:00:05]} g5 {[%emt 0:00:50]} 40. Kg2 {[%emt 0:03:41]} Kf7 {[%emt 0:00:25]} 41. Kf3 {[%emt 0:30:50]} Re7 {[%emt 0:06:10]} (41... h5 $11) 42. Bc4+ {[%emt 0:00:00]} Ke8 {[%emt 0:05:54]} 43. Be6 {[%emt 0:00:00][%cal Ra4a8]} Rc7 {[%emt 0:06:28]} 44. c4 {[%emt 0:00:00]} Ke7 {[%emt 0:01:40]} 45. Ra6 {[%emt 0:00:00]} Bd4 {[%emt 0:04:34]} 46. Ke4 {[%emt 0:00:00]} Bg1 {[%emt 0:02:50]} 47. Ra2 {[%emt 0:00:00]} (47. h4 $16) 47... Kd6 {[%emt 0:01:32]} (47... h5 $14) 48. Rd2+ {[%emt 0:00:00]} Ke7 {[%emt 0:00:52]} 49. Rg2 {[%emt 0:00:00]} Ba7 {[%emt 0:00:19]} 50. Rb2 {[%emt 0:00:00]} Kd6 {[%emt 0:00:26]} 51. h3 {[%emt 0:00:00]} ({Better is} 51. Rd2+ $16 Ke7 52. h4) 51... Bc5 {[%emt 0:01:15]} 52. Rd2+ {[%emt 0:00:00]} Ke7 {[%emt 0:00:16]} 53. Rd3 {[%emt 0:00:00] White is more active.} (53. h4 $16) 53... Bd6 {[%emt 0:00:45]} 54. Rb3 {[%emt 0:00:00]} Rc5 {[%emt 0:01:43]} 55. Kd4 {[%emt 0:00:00]} Rc7 {[%emt 0:00:17]} (55... Kd8 $16) 56. g4 $1 $18 {[%emt 0:00:00]} Bh2 {[%emt 0:02:59] [#]} 57. Kd5 $1 {[%emt 0:00:00]} Ra7 {[%emt 0:00:23]} 58. c5 {[%emt 0:00:00]} Be5 {[%emt 0:00:45]} 59. Kc6 {[%emt 0:00:00]} Ra1 {[%emt 0:00:31]} 60. Rb7+ {[%emt 0:00:00]} Kd8 {[%emt 0:00:25]} 61. Rxh7 {[%emt 0:00:00]} Rc1 {[%emt 0:00:30]} 62. Rd7+ {[%emt 0:03:29]} Ke8 {[%emt 0:00:01]} 63. Rb7 {[%emt 0:01:59]} Rc3 {[%emt 0:00:36]} 64. Rb1 {[%emt 0:01:36]} Rxh3 $2 {[%emt 0:00:44]} (64... Bg3 65. Rb7 Bf2 66. Rb8+ Ke7) 65. Kb7 {[%emt 0:00:18] aiming for c6.} Rh7+ {[%emt 0:00:33]} 66. Kb6 {[%emt 0:00:10]} Bc7+ {[%emt 0:00:37]} 67. Ka6 {[%emt 0:00:47] Threatens to win with c6.} Be5 {[%emt 0:00:31]} 68. c6 {[%emt 0:00:53]} (68. Bc4 $18) 68... Kd8 $16 {[%emt 0:00:25]} 69. Rb3 {[%emt 0:00:14]} Rh1 $2 {[%emt 0:00:33][%mdl 8192] [#]} (69... Bh2 $16 70. Kb6 Bg1+ 71. Ka6 Bh2) 70. Kb7 $2 {[%emt 0:01:03]} (70. Kb6 $1 $18 {and the rest is easy. Rd3+ would kill now.} Rd1 71. Rh3) 70... Rc1 $2 {[%emt 0:00:30][%mdl 8192]} (70... Rh7+ $16 71. Kb6 Bd4+ 72. Ka6 Be5) 71. Rd3+ $18 {[%emt 0:00:30]} Ke8 {[%emt 0:00:14]} 72. Bb3 {[%emt 0:00:56]} Ke7 {[%emt 0:00:32]} 73. Rd7+ {[%emt 0:02:04]} Ke8 {[%emt 0:00:15]} 74. Rh7 {[%emt 0:00:12]} Rb1 {[%emt 0:00:40]} 75. Rh3 {[%emt 0:00:05]} Rc1 {[%emt 0:00:52]} 76. Rh8+ {[%emt 0:01:45]} Ke7 {[%emt 0:00:01]} 77. Rh7+ {[%emt 0:00:05]} Kd8 {[%emt 0:00:22]} 78. Rd7+ {[%emt 0:00:04]} Ke8 {[%emt 0:00:03]} 79. Bf7+ {[%emt 0:00:17]} Kf8 {[%emt 0:00:09]} 80. c7 {[%emt 0:00:27]} Rb1+ {[%emt 0:01:54]} 81. Ka6 {[%emt 0:00:08]} Ra1+ {[%emt 0:00:12]} 82. Kb5 {[%emt 0:00:15]} Rb1+ {[%emt 0:00:06]} 83. Ka4 {[%emt 0:00:14]} (83. Kc5 $142 Bxc7 84. Rxc7 Re1 85. Bd5 Rg1 86. Rf7+ Kg8 87. Rxf6+ Kh8 88. Rf8+ Kg7 89. Rf7+ Kh6 90. f6) 83... Ra1+ {[%emt 0:01:03]} 84. Kb3 {[%emt 0:00:25] Weighted Error Value: White=0.16 (very precise) /Black=0.28 (precise)} (84. Kb4 $142 Bxc7 85. Rxc7) 1-0

[Event "Mitropa Cup Women 2022"]
[Site "Corte"]
[Date "2022.05.03"]
[Round "4.2"]
[White "Mihok-Juhasz, Barbara"]
[Black "Medic, Mirjana"]
[Result "1/2-1/2"]
[ECO "C11"]
[WhiteElo "2202"]
[BlackElo "2167"]
[Annotator "TA"]
[PlyCount "181"]
[EventDate "2022.04.30"]
[EventType "team-tourn"]
[EventCountry "FRA"]
[SourceTitle "playchess.com"]
[Source "ChessBase"]
[SourceQuality "1"]
[WhiteTeam "Hungary"]
[BlackTeam "Croatia"]
[WhiteTeamCountry "HUN"]
[BlackTeamCountry "CRO"]
[TimeControl "40/5400+30:1800+30"]

{[%evp 14,181,16,16,15,13,10,9,14,17,14,12,2,3,10,10,20,10,9,20,65,69,93,92,102,102,94,99,96,69,78,33,55,56,75,64,73,73,75,70,53,70,55,8,14,14,14,8,8,8,14,13,13,8,8,8,8,7,8,8,8,8,8,7,8,8,8,8,8,0,8,0,8,7,7,7,7,7,7,7,7,7,8,7,7,7,7,7,7,7,7,7,7,7,7,7,7,7,7,7,7,7,7,0,0,0,0,0,0,0,7,7,7,7,7,7,7,0,7,7,7,7,7,7,7,7,7,7,7,7,7,7,7,7,7,7,7,7,7,7,7,7,7,7,7,7,7,7,7,7,7,7,7,7,7,0,7,7,7,7,7,7,7,7,7,7,7,7,7,7]} 1. e4 {[%emt 0:00:03][%cal Be2e4,Be4e5][%mdl 32]} e6 {[%emt 0:00:05]} 2. d4 {[%emt 0:00:06]} d5 {[%emt 0:00:05]} 3. Nc3 {[%emt 0:00:05]} Nf6 {[%emt 0:00:35]} 4. e5 {[%emt 0:00:06]} Nfd7 {[%emt 0:00:06]} 5. f4 {[%emt 0:00:04]} a6 {[%emt 0:00:28]} 6. Nf3 {[%emt 0:00:44]} c5 {[%emt 0:00:40]} 7. Be3 {[%emt 0:00:36]} Nc6 {[%emt 0:00:07]} 8. a3 {[%emt 0:00:14]} b5 {[%emt 0:03:50] C11: French: Classical System: 4 e5 and 4 Bg5 dxe4.} (8... cxd4 {seems wilder.} 9. Nxd4 Bc5 10. Qd2 Qc7) 9. dxc5 {[%emt 0:00:12]} Bxc5 {[%emt 0:00:08]} 10. Bxc5 {[%emt 0:00:05]} Nxc5 {[%emt 0:00:08]} 11. b4 {[%emt 0:00:03]} Nd7 {[%emt 0:06:09]} 12. Bd3 {[%emt 0:01:22]} Qb6 {[%emt 0:04:31]} 13. Qd2 {[%emt 0:00:16]} Bb7 {[%emt 0:01:36]} 14. Qf2 {[%emt 0:00:20] [#]} h6 $146 {[%emt 0:06:52]} ({Predecessor:} 14... Rc8 15. Ne2 Qxf2+ 16. Kxf2 Nb6 17. Ned4 Na4 18. Nxc6 Bxc6 19. Nd4 Ke7 20. Rhe1 Bd7 {0-1 (42) Vujakovic,B (2353)-Kovacevic,V (2467) Bol 2015}) 15. h4 {[%emt 0:05:29]} Qxf2+ {[%emt 0:08:45]} 16. Kxf2 {[%emt 0:00:05]} Nb6 {[%emt 0:00:49]} 17. Rhb1 {[%emt 0:15:06] White is more active.} Kd7 {[%emt 0:11:08]} 18. a4 {[%emt 0:12:18]} Nxa4 {[%emt 0:01:35]} 19. Nxa4 {[%emt 0:00:16]} bxa4 {[%emt 0:00:02]} 20. Rxa4 {[%emt 0:00:51]} Kc7 {[%emt 0:03:57]} 21. Rba1 {[%emt 0:09:22]} Kb6 {[%emt 0:03:28]} 22. c3 {[%emt 0:02:52]} a5 {[%emt 0:06:22]} 23. bxa5+ $1 {[%emt 0:11:59]} Rxa5 {[%emt 0:00:34]} 24. Rxa5 {[%emt 0:00:06]} Nxa5 {[%emt 0:00:04]} 25. Nd4 {[%emt 0:00:04]} Ra8 {[%emt 0:07:08]} 26. Rb1+ {[%emt 0:00:39]} Kc7 {[%emt 0:00:11]} 27. Nb5+ {[%emt 0:00:42]} Kd7 {[%emt 0:01:53]} 28. Ra1 {[%emt 0:15:02]} (28. Nd6 $14 Bc6 29. Nxf7) 28... Nb3 {[%emt 0:06:08] The position is equal.} 29. Rxa8 {[%emt 0:00:06]} Bxa8 $11 {[%emt 0:00:01][%mdl 4096] Endgame KBN-KBN} 30. Ke3 {[%emt 0:00:35]} Bc6 {[%emt 0:02:17]} 31. Nd4 {[%emt 0:04:03]} Nxd4 {[%emt 0:04:16]} 32. Kxd4 {[%emt 0:00:07] KB-KB} Ba4 {[%emt 0:00:35]} 33. Kc5 {[%emt 0:02:53]} Bd1 {[%emt 0:00:33]} 34. f5 {[%emt 0:04:59]} Ke7 {[%emt 0:00:17]} 35. Kd4 {[%emt 0:02:03]} Bg4 {[%emt 0:00:57]} 36. fxe6 $1 {[%emt 0:08:28]} fxe6 {[%emt 0:00:07]} 37. Kc5 {[%emt 0:00:31]} Bd1 {[%emt 0:00:26]} 38. Kc6 {[%emt 0:00:06]} Ba4+ {[%emt 0:00:37]} 39. Kc7 {[%emt 0:00:35]} Bd1 {[%emt 0:00:07]} 40. Kb6 {[%emt 0:02:23]} Kd7 {[%emt 0:00:49]} 41. Kc5 {[%emt 0:33:01]} Ke7 {[%emt 0:30:21]} 42. Kd4 {[%emt 0:00:13]} Kf7 {[%emt 0:01:09]} 43. Ke3 {[%emt 0:01:17]} Bg4 {[%emt 0:02:36]} 44. Kf4 {[%emt 0:00:00]} Bd1 {[%emt 0:00:00]} 45. g4 {[%emt 0:00:00]} Bb3 {[%emt 0:00:00]} 46. Be2 {[%emt 0:00:00]} Bc2 {[%emt 0:00:00]} 47. g5 {[%emt 0:00:00]} Bg6 {[%emt 0:00:00]} 48. Bb5 {[%emt 0:00:00]} Bh5 {[%emt 0:00:00]} 49. Ba4 {[%emt 0:00:00]} Be2 {[%emt 0:00:00]} 50. Bc2 {[%emt 0:00:00]} Bh5 {[%emt 0:00:00]} 51. Bd3 {[%emt 0:00:00]} Bd1 {[%emt 0:00:00]} 52. Ba6 {[%emt 0:00:00]} Bh5 {[%emt 0:00:00]} 53. Bf1 {[%emt 0:00:00]} Bd1 {[%emt 0:00:00]} 54. Bh3 {[%emt 0:00:00]} Bc2 {[%emt 0:00:00]} 55. Bg4 {[%emt 0:00:00]} Bd3 {[%emt 0:00:00]} 56. Bh5+ {[%emt 0:00:00]} Ke7 {[%emt 0:00:00]} 57. Bd1 {[%emt 0:00:00]} Kf7 {[%emt 0:00:00]} 58. Kg4 {[%emt 0:00:00]} Bf5+ {[%emt 0:00:00]} 59. Kh5 {[%emt 0:00:00]} Bg6+ {[%emt 0:00:00]} 60. Kg4 {[%emt 0:00:00]} Bf5+ {[%emt 0:00:00]} 61. Kf4 {[%emt 0:00:00]} Bd3 {[%emt 0:00:00]} 62. Bf3 {[%emt 0:00:00]} Kg6 {[%emt 0:00:00]} 63. gxh6 {[%emt 0:00:00]} gxh6 {[%emt 0:00:00]} 64. Ke3 {[%emt 0:00:11]} Bc2 {[%emt 0:00:00]} 65. Kf4 {[%emt 0:00:14]} Bd3 {[%emt 0:00:00]} 66. Bg4 {[%emt 0:00:35]} Kf7 {[%emt 0:00:00]} 67. Bh5+ {[%emt 0:00:50]} Ke7 {[%emt 0:00:00]} 68. Bd1 {[%emt 0:01:02]} Kf7 {[%emt 0:00:00]} 69. Ke3 {[%emt 0:02:11]} Bf5 {[%emt 0:00:00]} 70. Kd4 {[%emt 0:00:23]} Ke7 {[%emt 0:00:00]} 71. Kc5 {[%emt 0:00:06]} Bd3 {[%emt 0:00:00]} 72. Ba4 {[%emt 0:00:25]} Bf5 {[%emt 0:00:00]} 73. Kd4 {[%emt 0:00:17]} Kf7 {[%emt 0:00:00]} 74. Ke3 {[%emt 0:00:08]} Bg4 {[%emt 0:00:00]} 75. Kf4 {[%emt 0:01:38]} Bh5 {[%emt 0:00:00]} 76. Bc2 {[%emt 0:00:48]} Ke7 {[%emt 0:00:00]} 77. Ke3 {[%emt 0:00:17]} Kd7 {[%emt 0:00:00]} 78. Kd4 {[%emt 0:00:31]} Ke7 {[%emt 0:00:00]} 79. Kc5 {[%emt 0:00:22]} Bf3 {[%emt 0:00:00]} 80. Bg6 {[%emt 0:00:13]} Be2 {[%emt 0:00:00]} 81. Kd4 {[%emt 0:00:29]} Bd1 {[%emt 0:00:00]} 82. Ke3 {[%emt 0:00:37]} Bg4 {[%emt 0:00:00]} 83. Kf4 {[%emt 0:00:05]} Be2 {[%emt 0:00:00]} 84. Bc2 {[%emt 0:00:17]} Bh5 {[%emt 0:00:00]} 85. Bd3 {[%emt 0:00:08]} Kd7 {[%emt 0:00:00]} 86. Bb5+ {[%emt 0:00:32]} Ke7 {[%emt 0:00:00]} 87. Bf1 {[%emt 0:00:12]} Kf7 {[%emt 0:00:00]} 88. c4 {[%emt 0:00:09]} dxc4 {[%emt 0:00:00]} 89. Bxc4 {[%emt 0:00:04]} Ke7 {[%emt 0:00:21]} 90. Ke3 {[%emt 0:00:27]} Bg4 {[%emt 0:00:25]} 91. Ke4 {Weighted Error Value: White=0.04 (flawless) /Black=0.03 (flawless)} 1/2-1/2

[Event "Mitropa Cup Women 2022"]
[Site "Corte"]
[Date "2022.05.03"]
[Round "4.2"]
[White "Nemcova, Karin"]
[Black "Nadzamova, Viktoria"]
[Result "1-0"]
[ECO "D02"]
[WhiteElo "2181"]
[BlackElo "2117"]
[Annotator "TA"]
[PlyCount "69"]
[EventDate "2022.04.30"]
[EventType "team-tourn"]
[EventCountry "FRA"]
[SourceTitle "playchess.com"]
[Source "ChessBase"]
[SourceQuality "1"]
[TimeControl "40/5400+30:1800+30"]

{[%evp 9,69,0,23,24,27,0,0,0,14,-10,-5,-2,-7,-8,-5,-9,0,-17,-21,-36,-33,-28,-36,-33,-26,-31,17,0,39,-39,-29,-43,0,0,0,0,0,0,43,43,79,84,113,117,109,111,116,110,112,112,114,120,585,521,1124,344,336,339,1687,1658,29998,29999]} 1. d4 {[%emt 0:00:02]} Nf6 {[%emt 0:00:09]} 2. Nf3 {[%emt 0:00:09]} e6 {[%emt 0:00:44]} 3. Bf4 {[%emt 0:00:10]} d5 {[%emt 0:00:55]} 4. e3 {[%emt 0:00:10]} c5 {[%emt 0:03:50]} 5. Bd3 {[%emt 0:01:02]} c4 {[%emt 0:02:12]} 6. Be2 {[%emt 0:00:12] D02: 1 d4 d5 2 Nf3 sidelines, including 2...Nf6 3 g3 and 2...Nf6 3 Bf4.} Be7 {[%emt 0:01:42]} 7. Nbd2 {[%emt 0:01:48]} b5 {[%emt 0:06:20]} 8. c3 {[%emt 0:01:30] The position is equal.} Nc6 {[%emt 0:01:40] [#]} 9. Ne5 $146 {[%emt 0:02:04]} ({Predecessor:} 9. O-O O-O 10. b4 a5 11. a4 axb4 12. axb5 Rxa1 13. Qxa1 bxc3 14. Nxc4 dxc4 15. bxc6 {1-0 (44) Cativelli,G (2193)-De la Cruz Navarro,M (1806) Buenos Aires 2020}) 9... Bb7 {[%emt 0:00:29]} 10. O-O {[%emt 0:00:58]} O-O {[%emt 0:01:48]} 11. Nxc6 {[%emt 0:03:43]} Bxc6 {[%emt 0:00:07]} 12. Qc2 {[%emt 0:01:23]} a5 {[%emt 0:02:07]} 13. Bf3 {[%emt 0:02:33]} Ra6 {[%emt 0:06:43]} 14. e4 dxe4 {[%emt 0:01:35]} 15. Nxe4 {[%emt 0:06:35]} Nd5 {[%emt 0:00:31]} 16. Bd2 {[%emt 0:02:55]} f5 {[%emt 0:02:53]} 17. Ng3 {[%emt 0:01:13]} g5 {[%emt 0:05:20]} (17... Qd7 $15 {was preferrable.}) 18. h3 {[%emt 0:09:11][%cal Oa2a4]} Be8 {[%emt 0:05:05]} 19. Bxd5 {[%emt 0:03:28]} ({Better is} 19. b3 $14) 19... Qxd5 $15 {[%emt 0:00:38]} 20. f4 {[%emt 0:01:06]} g4 {[%emt 0:01:43]} 21. hxg4 {[%emt 0:05:07]} Bc6 {[%emt 0:04:20][%csl Gc6][%cal Rd5g2]} 22. Rf2 {[%emt 0:13:35]} Bh4 {[%emt 0:02:17] This bishop pair is nice.} 23. Kh2 {[%emt 0:00:25]} fxg4 {[%emt 0:14:20]} 24. Re1 {[%emt 0:06:55][%cal Ba1e1,Be1e5,Be5h5][%mdl 32]} Qd7 {[%emt 0:03:18]} 25. Re5 {[%emt 0:02:30]} Bf6 {[%emt 0:01:27]} 26. Rh5 {[%emt 0:02:41]} Qg7 {[%emt 0:05:45]} 27. f5 $1 {[%emt 0:03:30]} Be8 {[%emt 0:00:06]} 28. Bh6 $1 {[%emt 0:00:37]} Qc7 {[%emt 0:00:14]} 29. Bxf8 {[%emt 0:08:21][%cal Of5e6] Hoping for fxe6!} Bxh5 {[%emt 0:00:09] [#]} 30. Bh6 $1 $36 {[%emt 0:03:09][%mdl 2048] Black must now prevent fxe6. White has strong initiative.} ({Don't go for} 30. fxe6 $2 Bh4 31. Kg1 Qxg3 $19) 30... exf5 {[%emt 0:08:11][%mdl 8192] Loses the game.} (30... Bh4 $16 31. Bf4 Qf7) 31. Qxf5 {[%emt 0:00:43]} Bg6 {[%emt 0:01:13]} 32. Qxb5 {[%emt 0:02:05]} (32. Qd5+ Qf7 {[#]} 33. Rxf6 $1 {[%mdl 512]} Rxf6 34. Qd8+ Qf8 35. Bxf8 (35. Qxf8+ Rxf8 36. Bxf8 Kxf8 $14) 35... Rxf8 36. Qd5+ Rf7 37. Qxb5) 32... Re6 $18 {[%emt 0:06:22]} 33. Qd5 {[%emt 0:00:28] Really sharp!} Bf7 {[%emt 0:00:35] [#]} (33... Qe7 34. Rf4 Kh8 35. Rxg4 Qd6 36. Qxa5 Qb6 37. Qa8+ Qd8) 34. Rxf6 $1 {[%emt 0:01:18][%mdl 512] White wants to mate with Qg5+.} Ra6 {[%emt 0:06:41]} (34... Qe7 35. Qg5+) 35. Qg5+ {[%emt 0:00:16] Weighted Error Value: White=0.20 (precise) /Black=0.60} 1-0